fUST/lending_fUST_20260517
["ID","MTS","AMOUNT","RATE_DAILY","PERIOD"]
[422522961,1779030647000,-2880.750059,0.00010959,2]
[422522967,1779030647000,-663.506677,0.00010959,2]
[422523062,1779030648000,-160.0,0.00011152,7]
[422523051,1779030648000,-158.0,0.00011152,7]
[422523044,1779030648000,-200.0,0.00011031,2]
[422523043,1779030648000,-509.51299215,0.00011024,7]
[422523041,1779030648000,-484.47191886,0.00011024,7]
[422523038,1779030648000,-151.0,0.00011,2]
[422523047,1779030648000,-187.19107882,0.00011036,7]
[422523048,1779030648000,-393.75766963,0.00011112,2]
[422523045,1779030648000,-200.0,0.00011031,2]
[422523061,1779030648000,-546.13239405,0.00011152,7]
[422523040,1779030648000,-553.36076498,0.00011024,7]
[422523042,1779030648000,-524.67523933,0.00011024,7]
[422523049,1779030648000,-300.96468827,0.00011122,2]
[422523063,1779030648000,-158.0,0.00011152,7]
[422523060,1779030648000,-188.77725553,0.00011152,7]
[422523055,1779030648000,-348.91268663,0.00011152,7]
[422523052,1779030648000,-158.2,0.00011152,7]
[422523050,1779030648000,-158.0,0.00011152,7]
[422523056,1779030648000,-240.30788696,0.00011152,7]
[422523058,1779030648000,-231.10147494,0.00011152,7]
[422523059,1779030648000,-315.45815636,0.00011152,2]
[422523053,1779030648000,-158.0,0.00011152,7]
[422523054,1779030648000,-158.2,0.00011152,7]
[422523067,1779030648000,-161.43439757,0.00011152,7]
[422523064,1779030648000,-158.0,0.00011152,7]
[422523066,1779030648000,-164.2137157,0.00011152,7]
[422523046,1779030648000,-200.52205474,0.00011031,2]
[422523068,1779030648000,-160.2,0.00011152,7]
[422523057,1779030648000,-570.14246991,0.00011152,7]
[422523039,1779030648000,-151.0,0.00011,2]
[422523024,1779030648000,-689.905383,0.00010959,2]
[422523030,1779030648000,-200.0,0.00010999,2]
[422523069,1779030648000,-168.0,0.00011152,7]
[422523014,1779030648000,-689.905383,0.00010959,2]
[422523013,1779030648000,-151.0,0.00010959,2]
[422523012,1779030648000,-689.905383,0.00010959,2]
[422523011,1779030648000,-151.0,0.00010959,2]
[422523008,1779030648000,-689.905383,0.00010959,2]
[422523009,1779030648000,-689.905383,0.00010959,2]
[422523010,1779030648000,-689.905383,0.00010959,2]
[422523015,1779030648000,-264.858491,0.00010959,2]
[422523018,1779030648000,-689.905383,0.00010959,2]
[422523017,1779030648000,-689.905383,0.00010959,2]
[422523020,1779030648000,-689.905383,0.00010959,2]
[422523023,1779030648000,-689.905383,0.00010959,2]
[422523037,1779030648000,-151.0,0.00011,2]
[422523022,1779030648000,-689.905383,0.00010959,2]
[422523025,1779030648000,-689.905374,0.00010959,2]
[422523021,1779030648000,-689.905383,0.00010959,2]
[422523016,1779030648000,-689.905383,0.00010959,2]
[422523028,1779030648000,-200.0,0.00010999,2]
[422523036,1779030648000,-151.0,0.00011,2]
[422523033,1779030648000,-10115.45762428,0.00011,2]
[422523029,1779030648000,-200.0,0.00010999,2]
[422523035,1779030648000,-151.0,0.00011,2]
[422523032,1779030648000,-299699.4806065,0.00011,2]
[422523027,1779030648000,-200.0,0.00010999,2]
[422523026,1779030648000,-151.198478,0.00010959,2]
[422523034,1779030648000,-151.0,0.00011,2]
[422523031,1779030648000,-36316.52302119,0.00011,2]
[422523019,1779030648000,-689.905383,0.00010959,2]
[422523075,1779030648000,-410.18556693,0.00011152,7]
[422523074,1779030648000,-186.0,0.00011152,7]
[422523076,1779030648000,-166.0,0.00011152,7]
[422523113,1779030648000,-500.0,0.00011232,2]
[422523104,1779030648000,-1000.0,0.000112,3]
[422523115,1779030648000,-500.0,0.00011232,2]
[422523103,1779030648000,-323.41023539,0.00011197,7]
[422523105,1779030648000,-10115.45762428,0.000112,2]
[422523114,1779030648000,-500.0,0.00011232,2]
[422523111,1779030648000,-500.0,0.00011232,2]
[422523110,1779030648000,-500.0,0.00011232,2]
[422523109,1779030648000,-500.0,0.00011232,2]
[422523106,1779030648000,-200.0,0.00011231,2]
[422523108,1779030648000,-500.0,0.00011232,2]
[422523112,1779030648000,-500.0,0.00011232,2]
[422523117,1779030648000,-500.0,0.00011232,2]
[422523116,1779030648000,-189.41898783,0.00011232,2]
[422523119,1779030648000,-589.23,0.00011232,2]
[422523125,1779030648000,-634.86536425,0.00011232,2]
[422523122,1779030648000,-500.0,0.00011232,2]
[422523124,1779030648000,-500.0,0.00011232,2]
[422523121,1779030648000,-500.0,0.00011232,2]
[422523118,1779030648000,-500.0,0.00011232,2]
[422523127,1779030648000,-500.0,0.00011232,2]
[422523128,1779030648000,-500.0,0.00011232,2]
[422523126,1779030648000,-541.72,0.00011232,2]
[422523123,1779030648000,-500.0,0.00011232,2]
[422523130,1779030648000,-500.0,0.00011232,2]
[422523065,1779030648000,-369.9635279,0.00011152,7]
[422523132,1779030648000,-500.0,0.00011232,2]
[422523131,1779030648000,-527.37,0.00011232,2]
[422523120,1779030648000,-500.0,0.00011232,2]
[422523107,1779030648000,-500.0,0.00011232,2]
[422523129,1779030648000,-2170.89,0.00011232,2]
[422523102,1779030648000,-323.34996321,0.00011197,7]
[422523099,1779030648000,-376.23964786,0.00011191,7]
[422523070,1779030648000,-158.2,0.00011152,7]
[422523073,1779030648000,-158.2,0.00011152,7]
[422523072,1779030648000,-160.0,0.00011152,7]
[422523078,1779030648000,-158.2,0.00011152,5]
[422523087,1779030648000,-196.541624,0.00011161,2]
[422523088,1779030648000,-212.350431,0.00011161,2]
[422523089,1779030648000,-228.682652,0.00011161,2]
[422523077,1779030648000,-158.0,0.00011152,7]
[422523080,1779030648000,-158.2001633,0.00011152,7]
[422523079,1779030648000,-158.0,0.00011152,7]
[422523082,1779030648000,-161.0,0.00011152,7]
[422523085,1779030648000,-399.50377814,0.00011157,2]
[422523083,1779030648000,-260.00477677,0.00011152,7]
[422523071,1779030648000,-157.859173,0.00011152,7]
[422523081,1779030648000,-158.0,0.00011152,7]
[422523097,1779030648000,-371.89629687,0.0001117,7]
[422523091,1779030648000,-402.02677325,0.00011161,7]
[422523100,1779030648000,-424.73153998,0.00011191,7]
[422523101,1779030648000,-458.78994328,0.00011191,7]
[422523086,1779030648000,-338.228995,0.00011161,2]
[422523096,1779030648000,-423.25196348,0.0001117,7]
[422523095,1779030648000,-202.99262801,0.0001117,7]
[422523094,1779030648000,-366.75550518,0.00011168,7]
[422523098,1779030648000,-334.45359045,0.00011191,7]
[422523090,1779030648000,-433.493221,0.00011161,2]
[422523092,1779030648000,-347.9153157,0.00011161,7]
[422523084,1779030648000,-160.0,0.00011152,7]
[422523093,1779030648000,-161.23565415,0.00011166,7]
[422523172,1779030649000,-520.92,0.00011232,2]
[422523171,1779030649000,-606.29500468,0.00011232,2]
[422523179,1779030649000,-583.5,0.00011232,2]
[422523180,1779030649000,-583.47,0.00011232,2]
[422523158,1779030649000,-500.0,0.00011232,2]
[422523169,1779030649000,-603.36,0.00011232,2]
[422523159,1779030649000,-500.0,0.00011232,2]
[422523163,1779030649000,-521.4,0.00011232,2]
[422523164,1779030649000,-503.21627591,0.00011232,2]
[422523165,1779030649000,-500.0,0.00011232,2]
[422523168,1779030649000,-420.690807,0.00011232,2]
[422523173,1779030649000,-500.0,0.00011232,2]
[422523178,1779030649000,-897.03,0.00011232,2]
[422523177,1779030649000,-500.0,0.00011232,2]
[422523175,1779030649000,-500.0,0.00011232,2]
[422523174,1779030649000,-500.0,0.00011232,2]
[422523176,1779030649000,-500.0,0.00011232,2]
[422523182,1779030649000,-500.0,0.00011232,2]
[422523192,1779030649000,-562.6,0.00011232,2]
[422523181,1779030649000,-500.0,0.00011232,2]
[422523183,1779030649000,-500.0,0.00011232,2]
[422523188,1779030649000,-500.0,0.00011232,2]
[422523185,1779030649000,-500.0,0.00011232,2]
[422523190,1779030649000,-500.0,0.00011232,2]
[422523156,1779030649000,-500.51,0.00011232,2]
[422523170,1779030649000,-500.0,0.00011232,2]
[422523166,1779030649000,-500.0,0.00011232,2]
[422523146,1779030649000,-787.9992,0.00011232,2]
[422523155,1779030649000,-500.0,0.00011232,2]
[422523186,1779030649000,-500.0,0.00011232,2]
[422523140,1779030649000,-500.0,0.00011232,2]
[422523138,1779030649000,-500.0,0.00011232,2]
[422523136,1779030649000,-576.57,0.00011232,2]
[422523137,1779030649000,-166.56887103,0.00011232,2]
[422523133,1779030649000,-500.0,0.00011232,2]
[422523139,1779030649000,-500.0,0.00011232,2]
[422523135,1779030649000,-2235.39,0.00011232,2]
[422523134,1779030649000,-500.0,0.00011232,2]
[422523141,1779030649000,-500.0,0.00011232,2]
[422523143,1779030649000,-565.72,0.00011232,2]
[422523147,1779030649000,-500.07,0.00011232,2]
[422523161,1779030649000,-603.96,0.00011232,2]
[422523144,1779030649000,-634.13,0.00011232,2]
[422523142,1779030649000,-500.0,0.00011232,2]
[422523150,1779030649000,-500.0,0.00011232,2]
[422523151,1779030649000,-500.0,0.00011232,2]
[422523148,1779030649000,-500.0,0.00011232,2]
[422523153,1779030649000,-500.0,0.00011232,2]
[422523154,1779030649000,-501.81,0.00011232,2]
[422523152,1779030649000,-500.0,0.00011232,2]
[422523149,1779030649000,-500.0,0.00011232,2]
[422523157,1779030649000,-500.0,0.00011232,2]
[422523162,1779030649000,-500.0,0.00011232,2]
[422523160,1779030649000,-500.0,0.00011232,2]
[422523167,1779030649000,-1545.78,0.00011232,2]
[422523145,1779030649000,-500.0,0.00011232,2]
[422523184,1779030649000,-500.0,0.00011232,2]
[422523194,1779030649000,-500.0,0.00011232,2]
[422523187,1779030649000,-649.44,0.00011232,2]
[422523229,1779030649000,-500.0,0.00011232,2]
[422523219,1779030649000,-500.0,0.00011232,2]
[422523221,1779030649000,-500.0,0.00011232,2]
[422523231,1779030649000,-500.0,0.00011232,2]
[422523226,1779030649000,-500.0,0.00011232,2]
[422523224,1779030649000,-500.0,0.00011232,2]
[422523232,1779030649000,-500.0,0.00011232,2]
[422523222,1779030649000,-508.47,0.00011232,2]
[422523228,1779030649000,-641.00758006,0.00011232,2]
[422523230,1779030649000,-500.0,0.00011232,2]
[422523233,1779030649000,-500.0,0.00011232,2]
[422523236,1779030649000,-500.0,0.00011232,2]
[422523220,1779030649000,-500.0,0.00011232,2]
[422523235,1779030649000,-1451.84,0.00011232,2]
[422523237,1779030649000,-500.0,0.00011232,2]
[422523238,1779030649000,-502.75299473,0.00011232,2]
[422523245,1779030649000,-500.0,0.00011232,2]
[422523244,1779030649000,-500.0,0.00011232,2]
[422523239,1779030649000,-500.0,0.00011232,2]
[422523241,1779030649000,-500.0,0.00011232,2]
[422523243,1779030649000,-500.0,0.00011232,2]
[422523240,1779030649000,-500.0,0.00011232,2]
[422523242,1779030649000,-500.0,0.00011232,2]
[422523247,1779030649000,-500.0,0.00011232,2]
[422523246,1779030649000,-500.0,0.00011232,2]
[422523248,1779030649000,-500.0,0.00011232,2]
[422523234,1779030649000,-500.0,0.00011232,2]
[422523227,1779030649000,-661.58,0.00011232,2]
[422523189,1779030649000,-332.19681978,0.00011232,2]
[422523223,1779030649000,-500.0,0.00011232,2]
[422523225,1779030649000,-978.26,0.00011232,2]
[422523191,1779030649000,-500.0,0.00011232,2]
[422523203,1779030649000,-500.0,0.00011232,2]
[422523202,1779030649000,-500.0,0.00011232,2]
[422523205,1779030649000,-500.0,0.00011232,2]
[422523204,1779030649000,-500.0,0.00011232,2]
[422523196,1779030649000,-520.92,0.00011232,2]
[422523197,1779030649000,-500.0,0.00011232,2]
[422523195,1779030649000,-500.0,0.00011232,2]
[422523198,1779030649000,-500.0,0.00011232,2]
[422523199,1779030649000,-500.0,0.00011232,2]
[422523200,1779030649000,-500.0,0.00011232,2]
[422523201,1779030649000,-500.0,0.00011232,2]
[422523193,1779030649000,-540.64,0.00011232,2]
[422523212,1779030649000,-622.11,0.00011232,2]
[422523207,1779030649000,-500.0,0.00011232,2]
[422523214,1779030649000,-500.0,0.00011232,2]
[422523216,1779030649000,-500.0,0.00011232,2]
[422523218,1779030649000,-504.63,0.00011232,2]
[422523217,1779030649000,-500.0,0.00011232,2]
[422523206,1779030649000,-500.0,0.00011232,2]
[422523211,1779030649000,-1870.61,0.00011232,2]
[422523213,1779030649000,-500.0,0.00011232,2]
[422523210,1779030649000,-1131.24,0.00011232,2]
[422523209,1779030649000,-500.0,0.00011232,2]
[422523215,1779030649000,-500.0,0.00011232,2]
[422523208,1779030649000,-500.0,0.00011232,2]
[422523291,1779030650000,-500.0,0.00011232,2]
[422523293,1779030650000,-500.0,0.00011232,2]
[422523286,1779030650000,-500.0,0.00011232,2]
[422523285,1779030650000,-500.0,0.00011232,2]
[422523287,1779030650000,-500.0,0.00011232,2]
[422523279,1779030650000,-500.0,0.00011232,2]
[422523288,1779030650000,-500.0,0.00011232,2]
[422523292,1779030650000,-500.0,0.00011232,2]
[422523273,1779030650000,-562.61,0.00011232,2]
[422523277,1779030650000,-500.0,0.00011232,2]
[422523290,1779030650000,-500.0,0.00011232,2]
[422523296,1779030650000,-583.42,0.00011232,2]
[422523289,1779030650000,-569.51,0.00011232,2]
[422523306,1779030650000,-500.0,0.00011232,2]
[422523294,1779030650000,-500.0,0.00011232,2]
[422523298,1779030650000,-2580.967932,0.00011232,2]
[422523308,1779030650000,-500.0,0.00011232,2]
[422523297,1779030650000,-1361.02,0.00011232,2]
[422523302,1779030650000,-500.0,0.00011232,2]
[422523300,1779030650000,-500.0,0.00011232,2]
[422523299,1779030650000,-500.0,0.00011232,2]
[422523303,1779030650000,-500.0,0.00011232,2]
[422523301,1779030650000,-500.0,0.00011232,2]
[422523305,1779030650000,-500.0,0.00011232,2]
[422523304,1779030650000,-500.0,0.00011232,2]
[422523307,1779030650000,-500.0,0.00011232,2]
[422523280,1779030650000,-500.0,0.00011232,2]
[422523309,1779030650000,-500.05,0.00011232,2]
[422523295,1779030650000,-514.18121957,0.00011232,2]
[422523278,1779030650000,-500.0,0.00011232,2]
[422523266,1779030650000,-500.0,0.00011232,2]
[422523276,1779030650000,-278.788202,0.00011232,2]
[422523257,1779030650000,-500.0,0.00011232,2]
[422523251,1779030650000,-539.44,0.00011232,2]
[422523317,1779030650000,-1206.68,0.00011232,2]
[422523252,1779030650000,-500.0,0.00011232,2]
[422523254,1779030650000,-802.81,0.00011232,2]
[422523249,1779030650000,-500.0,0.00011232,2]
[422523256,1779030650000,-532.3127437,0.00011232,2]
[422523250,1779030650000,-500.0,0.00011232,2]
[422523253,1779030650000,-542.12,0.00011232,2]
[422523258,1779030650000,-500.0,0.00011232,2]
[422523261,1779030650000,-500.0,0.00011232,2]
[422523262,1779030650000,-500.0,0.00011232,2]
[422523260,1779030650000,-500.0,0.00011232,2]
[422523284,1779030650000,-500.0,0.00011232,2]
[422523259,1779030650000,-500.0,0.00011232,2]
[422523264,1779030650000,-500.0,0.00011232,2]
[422523270,1779030650000,-500.0,0.00011232,2]
[422523265,1779030650000,-500.0,0.00011232,2]
[422523267,1779030650000,-500.0,0.00011232,2]
[422523268,1779030650000,-500.0,0.00011232,2]
[422523269,1779030650000,-500.0,0.00011232,2]
[422523282,1779030650000,-500.0,0.00011232,2]
[422523274,1779030650000,-500.0,0.00011232,2]
[422523283,1779030650000,-500.0,0.00011232,2]
[422523271,1779030650000,-500.0,0.00011232,2]
[422523272,1779030650000,-500.0,0.00011232,2]
[422523275,1779030650000,-500.0,0.00011232,2]
[422523281,1779030650000,-500.0,0.00011232,2]
[422523263,1779030650000,-500.0,0.00011232,2]
[422523255,1779030650000,-500.0,0.00011232,2]
[422523311,1779030650000,-500.0,0.00011232,2]
[422523312,1779030650000,-500.0,0.00011232,2]
[422523358,1779030650000,-154.69042783,0.00011232,2]
[422523355,1779030650000,-500.0,0.00011232,2]
[422523353,1779030650000,-5429.46,0.00011232,2]
[422523359,1779030650000,-290.80096869,0.00011232,2]
[422523356,1779030650000,-500.0,0.00011232,2]
[422523348,1779030650000,-85646.905039,0.00011232,2]
[422523360,1779030650000,-500.0,0.00011232,2]
[422523347,1779030650000,-500.0,0.00011232,2]
[422523349,1779030650000,-500.0,0.00011232,2]
[422523352,1779030650000,-500.0,0.00011232,2]
[422523350,1779030650000,-500.0,0.00011232,2]
[422523351,1779030650000,-500.0,0.00011232,2]
[422523354,1779030650000,-500.0,0.00011232,2]
[422523357,1779030650000,-562.78637355,0.00011232,2]
[422523362,1779030650000,-500.0,0.00011232,2]
[422523363,1779030650000,-489.68848654,0.00011232,2]
[422523364,1779030650000,-500.0,0.00011232,2]
[422523361,1779030650000,-625.07,0.00011232,2]
[422523372,1779030650000,-844.71,0.00011232,2]
[422523373,1779030650000,-898.68,0.00011232,2]
[422523366,1779030650000,-500.0,0.00011232,2]
[422523365,1779030650000,-2215.92,0.00011232,2]
[422523367,1779030650000,-500.0,0.00011232,2]
[422523369,1779030650000,-500.0,0.00011232,2]
[422523371,1779030650000,-500.0,0.00011232,2]
[422523368,1779030650000,-668.95,0.00011232,2]
[422523315,1779030650000,-500.0,0.00011232,2]
[422523374,1779030650000,-842.03,0.00011232,2]
[422523375,1779030650000,-500.0,0.00011232,2]
[422523344,1779030650000,-500.0,0.00011232,2]
[422523343,1779030650000,-500.0,0.00011232,2]
[422523370,1779030650000,-500.0,0.00011232,2]
[422523341,1779030650000,-693.9,0.00011232,2]
[422523346,1779030650000,-1279.9,0.00011232,2]
[422523314,1779030650000,-500.0,0.00011232,2]
[422523313,1779030650000,-500.0,0.00011232,2]
[422523320,1779030650000,-541.75,0.00011232,2]
[422523310,1779030650000,-500.0,0.00011232,2]
[422523318,1779030650000,-500.0,0.00011232,2]
[422523319,1779030650000,-506.35604129,0.00011232,2]
[422523321,1779030650000,-500.0,0.00011232,2]
[422523323,1779030650000,-500.0,0.00011232,2]
[422523328,1779030650000,-500.0,0.00011232,2]
[422523329,1779030650000,-645.96,0.00011232,2]
[422523331,1779030650000,-495.13695176,0.00011232,2]
[422523334,1779030650000,-302.1428779,0.00011232,2]
[422523332,1779030650000,-562.56,0.00011232,2]
[422523316,1779030650000,-500.0,0.00011232,2]
[422523322,1779030650000,-500.0,0.00011232,2]
[422523333,1779030650000,-500.0,0.00011232,2]
[422523345,1779030650000,-507.06,0.00011232,2]
[422523338,1779030650000,-500.0,0.00011232,2]
[422523339,1779030650000,-500.0,0.00011232,2]
[422523337,1779030650000,-500.0,0.00011232,2]
[422523335,1779030650000,-584.01,0.00011232,2]
[422523342,1779030650000,-500.0,0.00011232,2]
[422523336,1779030650000,-500.0,0.00011232,2]
[422523327,1779030650000,-500.0,0.00011232,2]
[422523326,1779030650000,-500.0,0.00011232,2]
[422523324,1779030650000,-500.0,0.00011232,2]
[422523325,1779030650000,-500.0,0.00011232,2]
[422523330,1779030650000,-500.0,0.00011232,2]
[422523340,1779030650000,-500.0,0.00011232,2]
[422523422,1779030651000,-572.94,0.00011232,2]
[422523429,1779030651000,-541.73,0.00011232,2]
[422523427,1779030651000,-500.0,0.00011232,2]
[422523409,1779030651000,-955.76,0.00011232,2]
[422523408,1779030651000,-1720.07,0.00011232,2]
[422523410,1779030651000,-628.75,0.00011232,2]
[422523406,1779030651000,-500.0,0.00011232,2]
[422523412,1779030651000,-231.52967026,0.00011232,2]
[422523401,1779030651000,-2828.53,0.00011232,2]
[422523420,1779030651000,-733.27,0.00011232,2]
[422523411,1779030651000,-500.0,0.00011232,2]
[422523413,1779030651000,-500.0,0.00011232,2]
[422523425,1779030651000,-500.77,0.00011232,2]
[422523418,1779030651000,-500.0,0.00011232,2]
[422523415,1779030651000,-541.73,0.00011232,2]
[422523416,1779030651000,-500.0,0.00011232,2]
[422523424,1779030651000,-1207.05,0.00011232,2]
[422523421,1779030651000,-500.0,0.00011232,2]
[422523428,1779030651000,-500.0,0.00011232,2]
[422523423,1779030651000,-500.0,0.00011232,2]
[422523426,1779030651000,-629.57,0.00011232,2]
[422523441,1779030651000,-500.0,0.00011232,2]
[422523440,1779030651000,-500.0,0.00011232,2]
[422523442,1779030651000,-500.0,0.00011232,2]
[422523433,1779030651000,-500.0,0.00011232,2]
[422523402,1779030651000,-500.0,0.00011232,2]
[422523419,1779030651000,-500.0,0.00011232,2]
[422523407,1779030651000,-500.0,0.00011232,2]
[422523388,1779030651000,-695.66,0.00011232,2]
[422523403,1779030651000,-594.36521181,0.00011232,2]
[422523376,1779030651000,-500.0,0.00011232,2]
[422523384,1779030651000,-562.58,0.00011232,2]
[422523381,1779030651000,-541.81274266,0.00011232,2]
[422523377,1779030651000,-586.8,0.00011232,2]
[422523380,1779030651000,-837.07,0.00011232,2]
[422523385,1779030651000,-500.0,0.00011232,2]
[422523386,1779030651000,-1474.68,0.00011232,2]
[422523379,1779030651000,-500.0,0.00011232,2]
[422523378,1779030651000,-500.0,0.00011232,2]
[422523382,1779030651000,-500.0,0.00011232,2]
[422523387,1779030651000,-500.0,0.00011232,2]
[422523383,1779030651000,-500.0,0.00011232,2]
[422523405,1779030651000,-500.0,0.00011232,2]
[422523389,1779030651000,-535.46741483,0.00011232,2]
[422523390,1779030651000,-500.0,0.00011232,2]
[422523391,1779030651000,-500.0,0.00011232,2]
[422523400,1779030651000,-500.0,0.00011232,2]
[422523393,1779030651000,-811.57,0.00011232,2]
[422523392,1779030651000,-500.0,0.00011232,2]
[422523394,1779030651000,-500.0,0.00011232,2]
[422523397,1779030651000,-500.0,0.00011232,2]
[422523396,1779030651000,-500.0,0.00011232,2]
[422523398,1779030651000,-4728.54,0.00011232,2]
[422523395,1779030651000,-500.0,0.00011232,2]
[422523414,1779030651000,-637.72,0.00011232,2]
[422523404,1779030651000,-704.98,0.00011232,2]
[422523399,1779030651000,-548.00861986,0.00011232,2]
[422523432,1779030651000,-3431.37,0.00011232,2]
[422523417,1779030651000,-562.56,0.00011232,2]
[422523438,1779030651000,-500.0,0.00011232,2]
[422523478,1779030651000,-878.9,0.00011232,2]
[422523474,1779030651000,-500.0,0.00011232,2]
[422523469,1779030651000,-500.0,0.00011232,2]
[422523480,1779030651000,-572.92,0.00011232,2]
[422523471,1779030651000,-7343.67,0.00011232,2]
[422523472,1779030651000,-500.0,0.00011232,2]
[422523479,1779030651000,-2006.76,0.00011232,2]
[422523468,1779030651000,-500.0,0.00011232,2]
[422523473,1779030651000,-500.0,0.00011232,2]
[422523476,1779030651000,-500.0,0.00011232,2]
[422523477,1779030651000,-500.0,0.00011232,2]
[422523475,1779030651000,-541.79,0.00011232,2]
[422523481,1779030651000,-500.0,0.00011232,2]
[422523482,1779030651000,-500.0,0.00011232,2]
[422523484,1779030651000,-1387.66,0.00011232,2]
[422523483,1779030651000,-500.0,0.00011232,2]
[422523485,1779030651000,-500.0,0.00011232,2]
[422523488,1779030651000,-9423.16,0.00011232,2]
[422523491,1779030651000,-500.0,0.00011232,2]
[422523490,1779030651000,-500.0,0.00011232,2]
[422523487,1779030651000,-500.0,0.00011232,2]
[422523486,1779030651000,-500.0,0.00011232,2]
[422523489,1779030651000,-500.0,0.00011232,2]
[422523492,1779030651000,-500.0,0.00011232,2]
[422523493,1779030651000,-625.12,0.00011232,2]
[422523494,1779030651000,-500.0,0.00011232,2]
[422523437,1779030651000,-500.0,0.00011232,2]
[422523466,1779030651000,-500.0,0.00011232,2]
[422523465,1779030651000,-500.0,0.00011232,2]
[422523470,1779030651000,-500.0,0.00011232,2]
[422523462,1779030651000,-600.29,0.00011232,2]
[422523459,1779030651000,-520.94,0.00011232,2]
[422523434,1779030651000,-557.62024256,0.00011232,2]
[422523430,1779030651000,-8049.62,0.00011232,2]
[422523435,1779030651000,-553.76718099,0.00011232,2]
[422523431,1779030651000,-500.0,0.00011232,2]
[422523439,1779030651000,-500.0,0.00011232,2]
[422523436,1779030651000,-1885.33,0.00011232,2]
[422523443,1779030651000,-469.41879922,0.00011232,2]
[422523455,1779030651000,-500.0,0.00011232,2]
[422523444,1779030651000,-500.0,0.00011232,2]
[422523446,1779030651000,-500.0,0.00011232,2]
[422523451,1779030651000,-500.0,0.00011232,2]
[422523450,1779030651000,-500.0,0.00011232,2]
[422523447,1779030651000,-521.39,0.00011232,2]
[422523445,1779030651000,-500.0,0.00011232,2]
[422523460,1779030651000,-500.0,0.00011232,2]
[422523449,1779030651000,-4628.96,0.00011232,2]
[422523463,1779030651000,-500.0,0.00011232,2]
[422523461,1779030651000,-500.0,0.00011232,2]
[422523464,1779030651000,-500.0,0.00011232,2]
[422523467,1779030651000,-1872.7,0.00011232,2]
[422523457,1779030651000,-500.0,0.00011232,2]
[422523458,1779030651000,-587.36,0.00011232,2]
[422523454,1779030651000,-534.42,0.00011232,2]
[422523453,1779030651000,-500.0,0.00011232,2]
[422523452,1779030651000,-4500.31,0.00011232,2]
[422523448,1779030651000,-500.0,0.00011232,2]
[422523456,1779030651000,-521.4991423,0.00011232,2]
[422523536,1779030652000,-500.0,0.00011232,2]
[422523539,1779030652000,-3984.54,0.00011232,2]
[422523537,1779030652000,-500.0,0.00011232,2]
[422523547,1779030652000,-500.0,0.00011232,2]
[422523538,1779030652000,-2106.39,0.00011232,2]
[422523524,1779030652000,-500.0,0.00011232,2]
[422523529,1779030652000,-500.0,0.00011232,2]
[422523531,1779030652000,-500.0,0.00011232,2]
[422523532,1779030652000,-500.0,0.00011232,2]
[422523534,1779030652000,-3883.53,0.00011232,2]
[422523526,1779030652000,-771.53,0.00011232,2]